[Event "Early Titled Tuesday Blitz | February 8 2022"]
[White "Krzywda, Andrzej"]
[Black "Blokhin, Sofia"]
[WhiteFideId "1114565"]
[BlackFideId "4508190"]
[WhiteElo "2098"]
[BlackElo "1762"]
[Result "1-0"]
[Round "03"]
[TimeControl "180+1"]
[Date "2022.02.08"]
[WhiteClock "0:01:38"]
[BlackClock "0:00:16"]

1. e4 {[%clk 0:03:00]}  c5 {[%clk 0:02:59]} 2. Nf3 {[%clk 0:03:01]}  e6 {[%clk 0:02:59]} 3. d4 {[%clk 0:03:00]}  cxd4 {[%clk 0:02:59]} 4. Nxd4 {[%clk 0:03:01]}  a6 {[%clk 0:02:59]} 5. Nc3 {[%clk 0:03:00]}  Qc7 {[%clk 0:02:58]} 6. Be3 {[%clk 0:02:58]}  Nf6 {[%clk 0:02:58]} 7. g4 {[%clk 0:02:53]}  Bb4 {[%clk 0:02:55]} 8. Bd3 {[%clk 0:02:33]}  d5 {[%clk 0:02:52]} 9. exd5 {[%clk 0:02:28]}  Nxd5 {[%clk 0:02:50]} 10. Bd2 {[%clk 0:02:26]}  Qe5+ {[%clk 0:02:44]} 11. Nde2 {[%clk 0:02:25]}  Nxc3 {[%clk 0:02:17]} 12. bxc3 {[%clk 0:02:24]}  Bc5 {[%clk 0:02:10]} 13. Bf4 {[%clk 0:02:12]}  Qd5 {[%clk 0:01:59]} 14. O-O {[%clk 0:02:12]}  b5 {[%clk 0:01:49]} 15. Ng3 {[%clk 0:02:06]}  Bb7 {[%clk 0:01:22]} 16. Be4 {[%clk 0:02:06]}  Qxd1 {[%clk 0:01:18]} 17. Rfxd1 {[%clk 0:02:06]}  Bxe4 {[%clk 0:01:16]} 18. Nxe4 {[%clk 0:02:07]}  Be7 {[%clk 0:01:13]} 19. a4 {[%clk 0:02:08]}  bxa4 {[%clk 0:01:09]} 20. Rxa4 {[%clk 0:02:02]}  O-O {[%clk 0:01:09]} 21. Kf1 {[%clk 0:01:48]}  Nc6 {[%clk 0:00:55]} 22. Rd7 {[%clk 0:01:46]}  Rfd8 {[%clk 0:00:44]} 23. Rc7 {[%clk 0:01:46]}  Rac8 {[%clk 0:00:27]} 24. Rxa6 {[%clk 0:01:42]}  Nb8 {[%clk 0:00:16]} 25. Rxc8 {[%clk 0:01:38]}  Rxc8 {[%clk 0:00:16]} 26. Ra8 {[%clk 0:01:38]} 1-0


[Site "https://www.chess.com"]

[Event "Early Titled Tuesday Blitz | February 8 2022"]
[White "Kuzmin, Roman"]
[Black "De Souza, Cristiano Gomes"]
[WhiteFideId "44134932"]
[BlackFideId "2151758"]
[WhiteElo "1978"]
[BlackElo "2068"]
[Result "1-0"]
[Round "03"]
[TimeControl "180+1"]
[Date "2022.02.08"]
[WhiteClock "0:00:35"]
[BlackClock "0:00:16"]

1. e4 {[%clk 0:03:00]}  c5 {[%clk 0:02:58]} 2. Nf3 {[%clk 0:03:00]}  d6 {[%clk 0:02:57]} 3. d4 {[%clk 0:03:00]}  cxd4 {[%clk 0:02:57]} 4. Nxd4 {[%clk 0:03:01]}  Nf6 {[%clk 0:02:57]} 5. Nc3 {[%clk 0:03:02]}  a6 {[%clk 0:02:56]} 6. Be2 {[%clk 0:03:02]}  e5 {[%clk 0:02:55]} 7. Nb3 {[%clk 0:03:02]}  Be6 {[%clk 0:02:55]} 8. f4 {[%clk 0:03:02]}  exf4 {[%clk 0:02:53]} 9. Bxf4 {[%clk 0:03:03]}  Nc6 {[%clk 0:02:53]} 10. Qd2 {[%clk 0:03:02]}  Be7 {[%clk 0:02:52]} 11. O-O-O {[%clk 0:02:59]}  Ne5 {[%clk 0:02:51]} 12. Nd4 {[%clk 0:02:32]}  Bc4 {[%clk 0:02:47]} 13. Bxe5 {[%clk 0:01:50]}  dxe5 {[%clk 0:02:41]} 14. Bxc4 {[%clk 0:01:47]}  exd4 {[%clk 0:02:40]} 15. Qxd4 {[%clk 0:01:48]}  Qxd4 {[%clk 0:02:39]} 16. Rxd4 {[%clk 0:01:49]}  O-O {[%clk 0:02:37]} 17. e5 {[%clk 0:01:46]}  Bc5 {[%clk 0:02:29]} 18. Rdd1 {[%clk 0:01:27]}  Ng4 {[%clk 0:02:27]} 19. Rde1 {[%clk 0:00:57]}  Rae8 {[%clk 0:02:23]} 20. e6 {[%clk 0:00:56]}  Be3+ {[%clk 0:01:55]} 21. Kb1 {[%clk 0:00:50]}  fxe6 {[%clk 0:01:53]} 22. Nd1 {[%clk 0:00:43]}  Nf2 {[%clk 0:01:28]} 23. Nxf2 {[%clk 0:00:43]}  Bxf2 {[%clk 0:01:23]} 24. Rxe6 {[%clk 0:00:39]}  Rxe6 {[%clk 0:01:13]} 25. Bxe6+ {[%clk 0:00:40]}  Kh8 {[%clk 0:01:14]} 26. Bg4 {[%clk 0:00:40]}  Re8 {[%clk 0:01:09]} 27. Bf3 {[%clk 0:00:36]}  b6 {[%clk 0:01:03]} 28. b4 {[%clk 0:00:35]}  g6 {[%clk 0:00:59]} 29. Kb2 {[%clk 0:00:34]}  Kg7 {[%clk 0:00:37]} 30. Rd1 {[%clk 0:00:34]}  Re6 {[%clk 0:00:33]} 31. Rd7+ {[%clk 0:00:35]}  Kh6 {[%clk 0:00:33]} 32. Kb3 {[%clk 0:00:35]}  Bg1 {[%clk 0:00:32]} 33. h3 {[%clk 0:00:35]}  Bh2 {[%clk 0:00:32]} 34. Bd5 {[%clk 0:00:34]}  Rd6 {[%clk 0:00:30]} 35. Rxd6 {[%clk 0:00:34]}  Bxd6 {[%clk 0:00:30]} 36. c4 {[%clk 0:00:34]}  Kg5 {[%clk 0:00:30]} 37. Bg8 {[%clk 0:00:33]}  h5 {[%clk 0:00:29]} 38. Bd5 {[%clk 0:00:32]}  Kf4 {[%clk 0:00:29]} 39. Bb7 {[%clk 0:00:32]}  a5 {[%clk 0:00:26]} 40. bxa5 {[%clk 0:00:33]}  bxa5 {[%clk 0:00:27]} 41. Ka4 {[%clk 0:00:34]}  Bc7 {[%clk 0:00:24]} 42. Kb5 {[%clk 0:00:33]}  Ke5 {[%clk 0:00:23]} 43. Bc6 {[%clk 0:00:33]}  Kd4 {[%clk 0:00:21]} 44. Be8 {[%clk 0:00:33]}  a4 {[%clk 0:00:17]} 45. Bxg6 {[%clk 0:00:33]}  a3 {[%clk 0:00:17]} 46. Bxh5 {[%clk 0:00:33]}  Kc3 {[%clk 0:00:17]} 47. Bf7 {[%clk 0:00:34]}  Kb2 {[%clk 0:00:16]} 48. c5 {[%clk 0:00:35]} 1-0


[Site "https://www.chess.com"]

[Event "Early Titled Tuesday Blitz | February 8 2022"]
[White "Lagunov, Evgenij"]
[Black "Varney, Zoe"]
[WhiteFideId "4125363"]
[BlackFideId "436135"]
[WhiteElo "2200"]
[BlackElo "1808"]
[Result "0-1"]
[Round "03"]
[TimeControl "180+1"]
[Date "2022.02.08"]
[WhiteClock "0:00:01"]
[BlackClock "0:00:04"]

1. e4 {[%clk 0:03:00]}  e5 {[%clk 0:02:59]} 2. Nf3 {[%clk 0:02:59]}  Nc6 {[%clk 0:02:59]} 3. Bc4 {[%clk 0:03:00]}  Nf6 {[%clk 0:02:58]} 4. d3 {[%clk 0:02:58]}  Bc5 {[%clk 0:02:58]} 5. O-O {[%clk 0:02:57]}  a6 {[%clk 0:02:58]} 6. c3 {[%clk 0:02:56]}  d6 {[%clk 0:02:58]} 7. h3 {[%clk 0:02:54]}  Ba7 {[%clk 0:02:59]} 8. Bg5 {[%clk 0:02:51]}  h6 {[%clk 0:02:58]} 9. Bh4 {[%clk 0:02:51]}  g5 {[%clk 0:02:57]} 10. Nxg5 {[%clk 0:02:32]}  hxg5 {[%clk 0:02:56]} 11. Bxg5 {[%clk 0:02:32]}  Rg8 {[%clk 0:02:37]} 12. h4 {[%clk 0:02:30]}  Be6 {[%clk 0:02:28]} 13. Qf3 {[%clk 0:02:26]}  Rg6 {[%clk 0:02:17]} 14. Nd2 {[%clk 0:02:18]}  Qe7 {[%clk 0:01:53]} 15. Bd5 {[%clk 0:01:57]}  O-O-O {[%clk 0:01:25]} 16. Nc4 {[%clk 0:01:43]}  Rdg8 {[%clk 0:01:06]} 17. Ne3 {[%clk 0:01:42]}  Nb8 {[%clk 0:00:46]} 18. Nf5 {[%clk 0:01:38]}  Bxf5 {[%clk 0:00:28]} 19. exf5 {[%clk 0:01:07]}  R6g7 {[%clk 0:00:28]} 20. Bxb7+ {[%clk 0:01:04]}  Kd8 {[%clk 0:00:26]} 21. d4 {[%clk 0:00:59]}  Nbd7 {[%clk 0:00:24]} 22. Rfe1 {[%clk 0:00:53]}  Rxg5 {[%clk 0:00:19]} 23. hxg5 {[%clk 0:00:51]}  Rxg5 {[%clk 0:00:20]} 24. Bxa6 {[%clk 0:00:47]}  e4 {[%clk 0:00:19]} 25. Qf4 {[%clk 0:00:41]}  Nd5 {[%clk 0:00:17]} 26. Qxe4 {[%clk 0:00:26]}  Qxe4 {[%clk 0:00:15]} 27. Rxe4 {[%clk 0:00:26]}  N7f6 {[%clk 0:00:12]} 28. Rh4 {[%clk 0:00:20]}  Nh5 {[%clk 0:00:10]} 29. g3 {[%clk 0:00:16]}  Ndf4 {[%clk 0:00:08]} 30. Kf1 {[%clk 0:00:14]}  Nd5 {[%clk 0:00:07]} 31. Re1 {[%clk 0:00:10]}  Kd7 {[%clk 0:00:07]} 32. g4 {[%clk 0:00:07]}  Ng7 {[%clk 0:00:06]} 33. f3 {[%clk 0:00:05]}  Nf6 {[%clk 0:00:06]} 34. Rh8 {[%clk 0:00:04]}  Nge8 {[%clk 0:00:07]} 35. Bb5+ {[%clk 0:00:04]}  c6 {[%clk 0:00:07]} 36. Bc4 {[%clk 0:00:03]}  d5 {[%clk 0:00:05]} 37. Bb3 {[%clk 0:00:03]}  Bb8 {[%clk 0:00:04]} 38. Ba4 {[%clk 0:00:02]}  Bg3 {[%clk 0:00:03]} 39. Re2 {[%clk 0:00:02]}  Bf4 {[%clk 0:00:04]} 40. Kg2 {[%clk 0:00:02]}  Bd6 {[%clk 0:00:04]} 41. Rf8 {[%clk 0:00:01]}  Bxf8 {[%clk 0:00:04]} 42. Bc2 {[%clk 0:00:01]}  Bd6 {[%clk 0:00:04]} 43. Kh3 {[%clk 0:00:01]}  Rg8 {[%clk 0:00:04]} 0-1


[Site "https://www.chess.com"]

[Event "Early Titled Tuesday Blitz | February 8 2022"]
[White "Lashkin, Jegor"]
[Black "Viani Antonio Dcunha"]
[WhiteFideId "13907808"]
[BlackFideId "5027330"]
[WhiteElo "2869"]
[BlackElo "2661"]
[Result "1-0"]
[Round "03"]
[TimeControl "180+1"]
[Date "2022.02.08"]
[WhiteClock "0:00:09"]
[BlackClock "0:00:14"]

1. Nf3 {[%clk 0:03:00]}  Nf6 {[%clk 0:02:57]} 2. b3 {[%clk 0:03:01]}  g6 {[%clk 0:02:57]} 3. Bb2 {[%clk 0:03:01]}  Bg7 {[%clk 0:02:57]} 4. c4 {[%clk 0:03:01]}  O-O {[%clk 0:02:57]} 5. e3 {[%clk 0:03:01]}  d6 {[%clk 0:02:57]} 6. d4 {[%clk 0:03:00]}  Nbd7 {[%clk 0:02:56]} 7. Be2 {[%clk 0:03:00]}  e5 {[%clk 0:02:55]} 8. dxe5 {[%clk 0:03:01]}  Ng4 {[%clk 0:02:55]} 9. O-O {[%clk 0:03:00]}  Ngxe5 {[%clk 0:02:54]} 10. Nc3 {[%clk 0:02:59]}  Re8 {[%clk 0:01:28]} 11. Nd4 {[%clk 0:02:58]}  a5 {[%clk 0:01:27]} 12. Qd2 {[%clk 0:02:57]}  Nc5 {[%clk 0:01:25]} 13. Rac1 {[%clk 0:02:50]}  Bd7 {[%clk 0:01:24]} 14. Rfd1 {[%clk 0:02:49]}  a4 {[%clk 0:01:21]} 15. b4 {[%clk 0:02:49]}  a3 {[%clk 0:01:21]} 16. Ba1 {[%clk 0:02:50]}  Na4 {[%clk 0:01:21]} 17. Nd5 {[%clk 0:02:48]}  c6 {[%clk 0:01:18]} 18. Nf4 {[%clk 0:02:47]}  Qc7 {[%clk 0:01:10]} 19. Nb3 {[%clk 0:02:45]}  Bf5 {[%clk 0:01:01]} 20. Nd4 {[%clk 0:02:41]}  Bd7 {[%clk 0:01:00]} 21. h3 {[%clk 0:02:19]}  c5 {[%clk 0:01:00]} 22. Nb5 {[%clk 0:02:10]}  Bxb5 {[%clk 0:00:59]} 23. cxb5 {[%clk 0:02:11]}  Nb2 {[%clk 0:00:58]} 24. Nd5 {[%clk 0:01:53]}  Qd8 {[%clk 0:00:54]} 25. Rf1 {[%clk 0:01:50]}  cxb4 {[%clk 0:00:52]} 26. Nxb4 {[%clk 0:01:33]}  Qa5 {[%clk 0:00:51]} 27. Rc2 {[%clk 0:01:26]}  Rac8 {[%clk 0:00:49]} 28. Rfc1 {[%clk 0:01:19]}  Rxc2 {[%clk 0:00:41]} 29. Rxc2 {[%clk 0:01:20]}  d5 {[%clk 0:00:36]} 30. Nxd5 {[%clk 0:01:06]}  Qxd2 {[%clk 0:00:36]} 31. Rxd2 {[%clk 0:01:07]}  Kf8 {[%clk 0:00:33]} 32. Kf1 {[%clk 0:01:00]}  Rd8 {[%clk 0:00:32]} 33. e4 {[%clk 0:00:53]}  Rc8 {[%clk 0:00:31]} 34. f4 {[%clk 0:00:40]}  Rc1+ {[%clk 0:00:26]} 35. Kf2 {[%clk 0:00:40]}  Nd7 {[%clk 0:00:23]} 36. Nb4 {[%clk 0:00:29]}  Nc5 {[%clk 0:00:21]} 37. Rc2 {[%clk 0:00:16]}  Nxe4+ {[%clk 0:00:19]} 38. Ke3 {[%clk 0:00:16]}  Rxa1 {[%clk 0:00:19]} 39. Kxe4 {[%clk 0:00:16]}  Rb1 {[%clk 0:00:19]} 40. Nd5 {[%clk 0:00:14]}  Bh6 {[%clk 0:00:16]} 41. g4 {[%clk 0:00:13]}  f5+ {[%clk 0:00:16]} 42. gxf5 {[%clk 0:00:13]}  gxf5+ {[%clk 0:00:17]} 43. Kxf5 {[%clk 0:00:14]}  Ke8 {[%clk 0:00:16]} 44. Ke6 {[%clk 0:00:12]}  Kd8 {[%clk 0:00:16]} 45. Ne7 {[%clk 0:00:09]}  Nc4 {[%clk 0:00:14]} 46. Rxc4 {[%clk 0:00:09]} 1-0


[Site "https://www.chess.com"]

[Event "Early Titled Tuesday Blitz | February 8 2022"]
[White "Lenderman, Aleksandr"]
[Black "Martinovici, Ilia"]
[WhiteFideId "2021285"]
[BlackFideId "13907034"]
[WhiteElo "2651"]
[BlackElo "2303"]
[Result "0-1"]
[Round "03"]
[TimeControl "180+1"]
[Date "2022.02.08"]
[WhiteClock "0:01:54"]
[BlackClock "0:01:00"]

1. b3 {[%clk 0:03:00]}  Nf6 {[%clk 0:02:57]} 2. Bb2 {[%clk 0:02:58]}  e6 {[%clk 0:02:57]} 3. Nf3 {[%clk 0:02:57]}  d5 {[%clk 0:02:58]} 4. e3 {[%clk 0:02:57]}  c5 {[%clk 0:02:56]} 5. c4 {[%clk 0:02:57]}  Nc6 {[%clk 0:02:52]} 6. cxd5 {[%clk 0:02:57]}  exd5 {[%clk 0:02:53]} 7. Bb5 {[%clk 0:02:57]}  Qb6 {[%clk 0:02:31]} 8. Nc3 {[%clk 0:02:51]}  Bg4 {[%clk 0:02:25]} 9. h3 {[%clk 0:02:48]}  Bh5 {[%clk 0:02:25]} 10. g4 {[%clk 0:02:48]}  Bg6 {[%clk 0:02:25]} 11. g5 {[%clk 0:02:48]}  Ne4 {[%clk 0:02:04]} 12. Nxd5 {[%clk 0:02:43]}  Qd8 {[%clk 0:02:02]} 13. Nf4 {[%clk 0:02:37]}  Nxg5 {[%clk 0:01:57]} 14. Nxg5 {[%clk 0:02:30]}  Qxg5 {[%clk 0:01:56]} 15. Qf3 {[%clk 0:02:30]}  Rc8 {[%clk 0:01:43]} 16. h4 {[%clk 0:02:13]}  Qf5 {[%clk 0:01:20]} 17. h5 {[%clk 0:02:01]}  Qe4 {[%clk 0:01:03]} 18. Qh3 {[%clk 0:01:54]}  Bf5 {[%clk 0:01:03]} 19. d3 {[%clk 0:01:54]}  Qb4+ {[%clk 0:01:00]} 0-1


[Site "https://www.chess.com"]

[Event "Early Titled Tuesday Blitz | February 8 2022"]
[White "Liyanage, Ranindu Dilshan"]
[Black "Kiolbasa, Oliwia"]
[WhiteFideId "9915834"]
[BlackFideId "1154613"]
[WhiteElo "1858"]
[BlackElo "2190"]
[Result "1-0"]
[Round "03"]
[TimeControl "180+1"]
[Date "2022.02.08"]
[WhiteClock "0:00:06"]
[BlackClock "0:00:01"]

1. e4 {[%clk 0:03:00]}  e5 {[%clk 0:02:59]} 2. Nf3 {[%clk 0:03:00]}  Nc6 {[%clk 0:03:00]} 3. Bc4 {[%clk 0:03:00]}  Bc5 {[%clk 0:02:57]} 4. c3 {[%clk 0:03:00]}  Nf6 {[%clk 0:02:56]} 5. d4 {[%clk 0:03:00]}  exd4 {[%clk 0:02:56]} 6. e5 {[%clk 0:03:01]}  d5 {[%clk 0:02:56]} 7. Bb5 {[%clk 0:03:01]}  Ne4 {[%clk 0:02:57]} 8. cxd4 {[%clk 0:03:02]}  Bb6 {[%clk 0:02:57]} 9. Nc3 {[%clk 0:02:58]}  O-O {[%clk 0:02:56]} 10. Be3 {[%clk 0:02:57]}  Bg4 {[%clk 0:02:53]} 11. h3 {[%clk 0:02:57]}  Bh5 {[%clk 0:02:53]} 12. Qc2 {[%clk 0:02:56]}  Nxc3 {[%clk 0:02:48]} 13. bxc3 {[%clk 0:02:49]}  f6 {[%clk 0:02:48]} 14. exf6 {[%clk 0:02:41]}  Qxf6 {[%clk 0:02:49]} 15. Be2 {[%clk 0:02:39]}  Rae8 {[%clk 0:02:46]} 16. O-O {[%clk 0:02:38]}  Nd8 {[%clk 0:02:31]} 17. Rfe1 {[%clk 0:02:18]}  Ne6 {[%clk 0:02:29]} 18. Ne5 {[%clk 0:02:06]}  Bxe2 {[%clk 0:02:29]} 19. Nd7 {[%clk 0:01:55]}  Qf5 {[%clk 0:02:10]} 20. Qxf5 {[%clk 0:01:44]}  Rxf5 {[%clk 0:02:10]} 21. Rxe2 {[%clk 0:01:44]}  Nf4 {[%clk 0:01:49]} 22. Rd2 {[%clk 0:01:41]}  Ba5 {[%clk 0:01:48]} 23. Rc1 {[%clk 0:01:34]}  Ng6 {[%clk 0:01:38]} 24. Nc5 {[%clk 0:01:28]}  Rb8 {[%clk 0:01:17]} 25. Rb2 {[%clk 0:01:17]}  Bb6 {[%clk 0:01:16]} 26. Nd3 {[%clk 0:01:07]}  Re8 {[%clk 0:01:09]} 27. a4 {[%clk 0:01:05]}  Rf7 {[%clk 0:01:04]} 28. Ra1 {[%clk 0:00:52]}  Ba5 {[%clk 0:00:59]} 29. Rxb7 {[%clk 0:00:51]}  c6 {[%clk 0:00:55]} 30. Rxf7 {[%clk 0:00:45]}  Kxf7 {[%clk 0:00:56]} 31. Rc1 {[%clk 0:00:44]}  Rb8 {[%clk 0:00:55]} 32. c4 {[%clk 0:00:43]}  dxc4 {[%clk 0:00:45]} 33. Rxc4 {[%clk 0:00:43]}  Ne7 {[%clk 0:00:45]} 34. Ne5+ {[%clk 0:00:43]}  Ke6 {[%clk 0:00:41]} 35. Nxc6 {[%clk 0:00:44]}  Rb1+ {[%clk 0:00:41]} 36. Kh2 {[%clk 0:00:42]}  Bc7+ {[%clk 0:00:37]} 37. g3 {[%clk 0:00:42]}  Nd5 {[%clk 0:00:33]} 38. Bg5 {[%clk 0:00:23]}  h6 {[%clk 0:00:29]} 39. Bd8 {[%clk 0:00:22]}  Bd6 {[%clk 0:00:25]} 40. a5 {[%clk 0:00:13]}  Rb2 {[%clk 0:00:24]} 41. Kg1 {[%clk 0:00:13]}  Rb1+ {[%clk 0:00:19]} 42. Kg2 {[%clk 0:00:13]}  Rb2 {[%clk 0:00:18]} 43. Rc1 {[%clk 0:00:14]}  Ne3+ {[%clk 0:00:17]} 44. Kf3 {[%clk 0:00:14]}  Nf5 {[%clk 0:00:13]} 45. Nxa7 {[%clk 0:00:12]}  Nxd4+ {[%clk 0:00:13]} 46. Kg2 {[%clk 0:00:13]}  Kd5 {[%clk 0:00:12]} 47. Bb6 {[%clk 0:00:13]}  Ne2 {[%clk 0:00:09]} 48. Rd1+ {[%clk 0:00:12]}  Ke6 {[%clk 0:00:09]} 49. Nc6 {[%clk 0:00:12]}  Nxg3 {[%clk 0:00:05]} 50. Bd4 {[%clk 0:00:10]}  Ra2 {[%clk 0:00:05]} 51. a6 {[%clk 0:00:08]}  Ne4 {[%clk 0:00:04]} 52. a7 {[%clk 0:00:08]}  Ng5 {[%clk 0:00:02]} 53. Rb1 {[%clk 0:00:07]}  Ne4 {[%clk 0:00:01]} 54. Rb8 {[%clk 0:00:07]}  Bc5 {[%clk 0:00:01]} 55. Bxc5 {[%clk 0:00:05]}  Nxc5 {[%clk 0:00:01]} 56. a8=Q {[%clk 0:00:06]} 1-0


[Site "https://www.chess.com"]

[Event "Early Titled Tuesday Blitz | February 8 2022"]
[White "Lopez Gracia, Fernando"]
[Black "Jaferian, Koosha"]
[WhiteFideId "2207184"]
[BlackFideId "12507440"]
[WhiteElo "2404"]
[BlackElo "2027"]
[Result "1/2-1/2"]
[Round "03"]
[TimeControl "180+1"]
[Date "2022.02.08"]
[WhiteClock "0:00:31"]
[BlackClock "0:00:12"]

1. c4 {[%clk 0:03:00]}  c5 {[%clk 0:02:59]} 2. Nf3 {[%clk 0:03:00]}  Nc6 {[%clk 0:03:00]} 3. g3 {[%clk 0:02:58]}  g6 {[%clk 0:03:00]} 4. Bg2 {[%clk 0:02:58]}  Bg7 {[%clk 0:03:00]} 5. O-O {[%clk 0:02:58]}  e5 {[%clk 0:02:59]} 6. Nc3 {[%clk 0:02:57]}  d6 {[%clk 0:02:59]} 7. e3 {[%clk 0:02:57]}  Be6 {[%clk 0:02:59]} 8. b3 {[%clk 0:02:56]}  Nge7 {[%clk 0:02:57]} 9. Bb2 {[%clk 0:02:53]}  h6 {[%clk 0:02:56]} 10. Re1 {[%clk 0:02:47]}  O-O {[%clk 0:02:56]} 11. a3 {[%clk 0:02:43]}  a5 {[%clk 0:02:54]} 12. Rc1 {[%clk 0:02:39]}  Qd7 {[%clk 0:02:28]} 13. Nb5 {[%clk 0:02:36]}  Rfd8 {[%clk 0:02:27]} 14. d4 {[%clk 0:02:35]}  exd4 {[%clk 0:02:00]} 15. exd4 {[%clk 0:02:35]}  Bg4 {[%clk 0:02:00]} 16. Qd2 {[%clk 0:02:29]}  Qf5 {[%clk 0:01:48]} 17. Nh4 {[%clk 0:02:24]}  Qf6 {[%clk 0:01:46]} 18. h3 {[%clk 0:02:14]}  Bc8 {[%clk 0:01:38]} 19. Re2 {[%clk 0:01:56]}  Nxd4 {[%clk 0:01:23]} 20. Nxd4 {[%clk 0:01:48]}  cxd4 {[%clk 0:01:24]} 21. Nf3 {[%clk 0:01:45]}  Nc6 {[%clk 0:01:24]} 22. Rd1 {[%clk 0:01:46]}  Bxh3 {[%clk 0:01:12]} 23. Nxd4 {[%clk 0:01:40]}  Nxd4 {[%clk 0:01:03]} 24. Bxd4 {[%clk 0:01:39]}  Qxd4 {[%clk 0:01:03]} 25. Qxd4 {[%clk 0:01:19]}  Bxd4 {[%clk 0:01:03]} 26. Rxd4 {[%clk 0:01:10]}  Bxg2 {[%clk 0:01:03]} 27. Kxg2 {[%clk 0:01:11]}  Rd7 {[%clk 0:00:47]} 28. Red2 {[%clk 0:01:09]}  Rad8 {[%clk 0:00:46]} 29. Rd5 {[%clk 0:01:09]}  b6 {[%clk 0:00:46]} 30. b4 {[%clk 0:01:01]}  axb4 {[%clk 0:00:46]} 31. axb4 {[%clk 0:01:02]}  Kf8 {[%clk 0:00:44]} 32. Rb5 {[%clk 0:01:01]}  Rc7 {[%clk 0:00:40]} 33. Rxb6 {[%clk 0:00:52]}  Rxc4 {[%clk 0:00:40]} 34. Rbxd6 {[%clk 0:00:45]}  Rxd6 {[%clk 0:00:39]} 35. Rxd6 {[%clk 0:00:46]}  Rxb4 {[%clk 0:00:40]} 36. Rd3 {[%clk 0:00:46]}  Kg7 {[%clk 0:00:40]} 37. Kf3 {[%clk 0:00:46]}  h5 {[%clk 0:00:41]} 38. Kg2 {[%clk 0:00:46]}  g5 {[%clk 0:00:37]} 39. Ra3 {[%clk 0:00:46]}  Kg6 {[%clk 0:00:37]} 40. Ra6+ {[%clk 0:00:46]}  f6 {[%clk 0:00:37]} 41. Ra3 {[%clk 0:00:46]}  Rc4 {[%clk 0:00:37]} 42. Rd3 {[%clk 0:00:46]}  Rb4 {[%clk 0:00:38]} 43. Ra3 {[%clk 0:00:47]}  Rb2 {[%clk 0:00:38]} 44. Kf3 {[%clk 0:00:45]}  Rc2 {[%clk 0:00:38]} 45. Rb3 {[%clk 0:00:44]}  Rc6 {[%clk 0:00:38]} 46. Ra3 {[%clk 0:00:44]}  f5 {[%clk 0:00:39]} 47. Rb3 {[%clk 0:00:44]}  Ra6 {[%clk 0:00:38]} 48. Rc3 {[%clk 0:00:44]}  Rb6 {[%clk 0:00:39]} 49. Ra3 {[%clk 0:00:44]}  Kf6 {[%clk 0:00:36]} 50. Re3 {[%clk 0:00:43]}  Re6 {[%clk 0:00:35]} 51. Ra3 {[%clk 0:00:43]}  g4+ {[%clk 0:00:20]} 52. Kg2 {[%clk 0:00:42]}  Kg5 {[%clk 0:00:20]} 53. Ra8 {[%clk 0:00:42]}  Rg6 {[%clk 0:00:18]} 54. Rh8 {[%clk 0:00:41]}  Rh6 {[%clk 0:00:17]} 55. Rg8+ {[%clk 0:00:41]}  Kf6 {[%clk 0:00:17]} 56. Rf8+ {[%clk 0:00:41]}  Ke5 {[%clk 0:00:18]} 57. Re8+ {[%clk 0:00:41]}  Kf6 {[%clk 0:00:15]} 58. Rf8+ {[%clk 0:00:41]}  Ke6 {[%clk 0:00:16]} 59. Re8+ {[%clk 0:00:41]}  Kf7 {[%clk 0:00:16]} 60. Re5 {[%clk 0:00:41]}  Rf6 {[%clk 0:00:15]} 61. Ra5 {[%clk 0:00:40]}  Kg6 {[%clk 0:00:15]} 62. f3 {[%clk 0:00:39]}  Rb6 {[%clk 0:00:10]} 63. Ra2 {[%clk 0:00:38]}  Rb3 {[%clk 0:00:09]} 64. fxg4 {[%clk 0:00:34]}  hxg4 {[%clk 0:00:09]} 65. Ra8 {[%clk 0:00:30]}  Rb2+ {[%clk 0:00:08]} 66. Kg1 {[%clk 0:00:31]}  Kf6 {[%clk 0:00:08]} 67. Ra5 {[%clk 0:00:28]}  Ke6 {[%clk 0:00:08]} 68. Kf1 {[%clk 0:00:28]}  Rc2 {[%clk 0:00:08]} 69. Kg1 {[%clk 0:00:28]}  Rd2 {[%clk 0:00:07]} 70. Kf1 {[%clk 0:00:28]}  Rb2 {[%clk 0:00:08]} 71. Kg1 {[%clk 0:00:28]}  Kf6 {[%clk 0:00:09]} 72. Kf1 {[%clk 0:00:27]}  Rb3 {[%clk 0:00:09]} 73. Kf2 {[%clk 0:00:28]}  Rc3 {[%clk 0:00:09]} 74. Rb5 {[%clk 0:00:27]}  Kg5 {[%clk 0:00:10]} 75. Rb8 {[%clk 0:00:27]}  Rc2+ {[%clk 0:00:10]} 76. Kf1 {[%clk 0:00:25]}  Kf6 {[%clk 0:00:06]} 77. Rb5 {[%clk 0:00:24]}  Ke6 {[%clk 0:00:07]} 78. Kg1 {[%clk 0:00:25]}  Kd6 {[%clk 0:00:07]} 79. Rxf5 {[%clk 0:00:24]}  Ke6 {[%clk 0:00:07]} 80. Rf4 {[%clk 0:00:24]}  Ke5 {[%clk 0:00:08]} 81. Rxg4 {[%clk 0:00:24]}  Kf5 {[%clk 0:00:08]} 82. Rg8 {[%clk 0:00:24]}  Ke4 {[%clk 0:00:08]} 83. Rf8 {[%clk 0:00:23]}  Ke5 {[%clk 0:00:08]} 84. Rf3 {[%clk 0:00:23]}  Ke4 {[%clk 0:00:08]} 85. Rf4+ {[%clk 0:00:23]}  Ke5 {[%clk 0:00:08]} 86. Rf2 {[%clk 0:00:23]}  Rxf2 {[%clk 0:00:06]} 87. Kxf2 {[%clk 0:00:24]}  Kf5 {[%clk 0:00:07]} 88. Kf3 {[%clk 0:00:24]}  Kg5 {[%clk 0:00:07]} 89. Kf2 {[%clk 0:00:24]}  Kg4 {[%clk 0:00:07]} 90. Kg2 {[%clk 0:00:25]}  Kg5 {[%clk 0:00:08]} 91. Kh3 {[%clk 0:00:26]}  Kh5 {[%clk 0:00:09]} 92. g4+ {[%clk 0:00:26]}  Kg5 {[%clk 0:00:09]} 93. Kg3 {[%clk 0:00:27]}  Kg6 {[%clk 0:00:10]} 94. Kf3 {[%clk 0:00:28]}  Kg5 {[%clk 0:00:10]} 95. Kg3 {[%clk 0:00:28]}  Kg6 {[%clk 0:00:11]} 96. Kh4 {[%clk 0:00:29]}  Kh6 {[%clk 0:00:11]} 97. Kh3 {[%clk 0:00:30]}  Kg5 {[%clk 0:00:12]} 98. Kg3 {[%clk 0:00:31]} 1/2-1/2


[Site "https://www.chess.com"]